fUST/lending_fUST_20240620
["ID","MTS","AMOUNT","RATE_DAILY","PERIOD"]
[329910614,1718825449155,-172.132112,0.00024657,2]
[329910615,1718825449164,-500.0,0.00024657,5]
[329910616,1718825449174,-500.0,0.00024657,5]
[329910617,1718825449183,-439.70153901,0.00024657,5]
[329910618,1718825449193,-500.0,0.00024657,5]
[329910619,1718825449203,-874.24,0.00024657,5]
[329910620,1718825449213,-746.57,0.00024657,5]
[329910621,1718825449223,-151.0,0.00024657,2]
[329910622,1718825449233,-151.0,0.00024657,2]
[329910623,1718825449242,-151.0,0.00024657,2]
[329910624,1718825449251,-151.0,0.00024657,2]
[329910625,1718825449261,-500.0,0.00024657,5]
[329910626,1718825449270,-227.51032,0.00024657,2]
[329910627,1718825449279,-500.0,0.00024657,5]
[329910628,1718825449288,-500.0,0.00024657,5]
[329910629,1718825449297,-500.0,0.00024657,5]
[329910630,1718825449306,-235.14236473,0.00024657,5]
[329910631,1718825449315,-772.52,0.00024657,5]
[329910632,1718825449325,-500.0,0.00024657,5]
[329910633,1718825449334,-500.0,0.00024657,5]
[329910634,1718825449343,-500.0,0.00024657,5]
[329910635,1718825449353,-500.0,0.00024657,5]
[329910636,1718825449362,-229.110421,0.00024657,2]
[329910637,1718825449372,-229.110421,0.00024657,2]
[329910638,1718825449381,-229.110421,0.00024657,2]
[329910639,1718825449396,-229.110421,0.00024657,2]
[329910640,1718825449406,-500.0,0.00024657,5]
[329910641,1718825449416,-766.988748,0.00024657,2]
[329910642,1718825449425,-766.988748,0.00024657,2]
[329910643,1718825449436,-766.988748,0.00024657,2]
[329910644,1718825449446,-766.988748,0.00024657,2]
[329910645,1718825449456,-229.110421,0.00024657,2]
[329910646,1718825449468,-500.0,0.00024657,5]
[329910647,1718825449479,-229.110421,0.00024657,2]
[329910648,1718825449489,-229.110421,0.00024657,2]
[329910649,1718825449498,-229.110417,0.00024657,2]
[329910650,1718825449507,-766.988748,0.00024657,2]
[329910651,1718825449516,-766.988748,0.00024657,2]
[329910652,1718825449526,-766.988748,0.00024657,2]
[329910653,1718825449535,-766.988748,0.00024657,2]
[329910654,1718825449545,-500.0,0.00024657,5]
[329910655,1718825449554,-500.0,0.00024657,5]
[329910656,1718825449563,-500.0,0.00024657,5]
[329910657,1718825449573,-417.42757665,0.00024657,5]
[329910658,1718825449582,-500.0,0.00024657,5]
[329910659,1718825449595,-500.0,0.00024657,5]
[329910660,1718825449605,-463.328871,0.00024657,2]
[329910661,1718825449614,-463.328871,0.00024657,2]
[329910662,1718825449624,-463.328871,0.00024657,2]
[329910663,1718825449634,-463.328871,0.00024657,2]
[329910664,1718825449644,-500.0,0.00024657,5]
[329910665,1718825449653,-463.328871,0.00024657,2]
[329910666,1718825449663,-463.328871,0.00024657,2]
[329910667,1718825449673,-463.328871,0.00024657,2]
[329910668,1718825449682,-500.0,0.00024657,5]
[329910669,1718825449691,-463.328875,0.00024657,2]
[329910670,1718825449703,-500.0,0.00024657,5]
[329910671,1718825449713,-151.0,0.00024657,2]
[329910672,1718825449723,-151.0,0.00024657,2]
[329910673,1718825449732,-151.0,0.00024657,2]
[329910674,1718825449741,-151.0,0.00024657,2]
[329910675,1718825449750,-500.0,0.00024657,5]
[329910676,1718825449759,-500.0,0.00024657,5]
[329910677,1718825449769,-151.0,0.00024657,2]
[329910678,1718825449778,-510.05,0.00024657,5]
[329910679,1718825449788,-1304.88,0.00024657,5]
[329910680,1718825449798,-7444.73,0.00024657,5]
[329910681,1718825449807,-500.0,0.00024657,5]
[329910682,1718825449817,-500.0,0.00024657,5]
[329910683,1718825449827,-500.0,0.00024657,5]
[329910684,1718825449837,-500.0,0.00024657,5]
[329910685,1718825449847,-500.0,0.00024657,5]
[329910686,1718825449857,-1837.48,0.00024657,5]
[329910687,1718825449866,-500.0,0.00024657,5]
[329910688,1718825449969,-500.0,0.00024657,5]
[329910689,1718825449980,-500.0,0.00024657,5]
[329910690,1718825449990,-500.0,0.00024657,5]
[329910691,1718825450000,-500.0,0.00024657,5]
[329910692,1718825450010,-1241.63,0.00024657,5]
[329910693,1718825450019,-500.0,0.00024657,5]
[329910694,1718825450029,-502.98287164,0.00024657,5]
[329910695,1718825450038,-2488.13,0.00024657,5]
[329910696,1718825450047,-502.19,0.00024657,5]
[329910697,1718825450056,-820.67,0.00024657,5]
[329910698,1718825450065,-500.0,0.00024657,5]
[329910699,1718825450075,-3461.42,0.00024657,5]
[329910700,1718825450084,-500.0,0.00024657,5]
[329910701,1718825450093,-500.0,0.00024657,5]
[329910702,1718825450102,-500.0,0.00024657,5]
[329910703,1718825450111,-500.0,0.00024657,5]
[329910704,1718825450121,-500.0,0.00024657,5]
[329910705,1718825450131,-500.0,0.00024657,5]
[329910706,1718825450139,-500.0,0.00024657,5]
[329910707,1718825450149,-500.0,0.00024657,5]
[329910708,1718825450158,-500.0,0.00024657,5]
[329910709,1718825450167,-500.0,0.00024657,5]
[329910710,1718825450176,-500.0,0.00024657,5]
[329910711,1718825450186,-500.0,0.00024657,5]
[329910712,1718825450195,-8160.75,0.00024657,5]
[329910713,1718825450204,-500.0,0.00024657,5]
[329910714,1718825450213,-500.0,0.00024657,5]
[329910715,1718825450223,-500.0,0.00024657,5]
[329910716,1718825450232,-500.0,0.00024657,5]
[329910717,1718825450241,-500.0,0.00024657,5]
[329910718,1718825450250,-500.0,0.00024657,5]
[329910719,1718825450259,-245.53078069,0.00024657,5]
[329910720,1718825450268,-500.0,0.00024657,5]
[329910721,1718825450277,-500.0,0.00024657,5]
[329910722,1718825450285,-500.0,0.00024657,5]
[329910723,1718825450295,-260.17480176,0.00024657,5]
[329910724,1718825450304,-500.0,0.00024657,5]
[329910725,1718825450314,-151.0,0.00024657,2]
[329910726,1718825450323,-500.0,0.00024657,5]
[329910727,1718825450332,-151.0,0.00024657,2]
[329910728,1718825450341,-526.62,0.00024657,5]
[329910729,1718825450351,-151.0,0.00024657,2]
[329910730,1718825450360,-500.0,0.00024657,5]
[329910731,1718825450369,-2579.15,0.00024657,5]
[329910732,1718825450379,-500.0,0.00024657,5]
[329910733,1718825450393,-500.0,0.00024657,5]
[329910734,1718825450402,-500.0,0.00024657,5]
[329910735,1718825450412,-500.0,0.00024657,5]
[329910736,1718825450423,-500.0,0.00024657,5]
[329910737,1718825450433,-500.0,0.00024657,5]
[329910738,1718825450443,-500.0,0.00024657,5]
[329910739,1718825450452,-500.0,0.00024657,5]
[329910740,1718825450464,-500.0,0.00024657,5]
[329910741,1718825450475,-500.0,0.00024657,5]
[329910742,1718825450484,-500.0,0.00024657,5]
[329910743,1718825450494,-500.0,0.00024657,5]
[329910744,1718825450504,-500.0,0.00024657,5]
[329910745,1718825450514,-918.74,0.00024657,5]
[329910746,1718825450524,-500.0,0.00024657,5]
[329910747,1718825450534,-500.0,0.00024657,5]
[329910748,1718825450543,-500.0,0.00024657,5]
[329910749,1718825450553,-500.0,0.00024657,5]
[329910750,1718825450564,-500.0,0.00024657,5]
[329910751,1718825450574,-809.32,0.00024657,5]
[329910752,1718825450583,-151.0,0.00024657,2]
[329910753,1718825450593,-151.0,0.00024657,2]
[329910754,1718825450603,-151.0,0.00024657,2]
[329910755,1718825450613,-500.0,0.00024657,5]
[329910756,1718825450622,-3172.76,0.00024657,5]
[329910757,1718825450632,-157.870188,0.00024657,2]
[329910758,1718825450642,-599.49,0.00024657,5]
[329910759,1718825450651,-500.0,0.00024657,5]
[329910760,1718825450661,-500.0,0.00024657,5]
[329910761,1718825450670,-500.0,0.00024657,5]
[329910762,1718825450679,-646.31244502,0.00024657,5]
[329910763,1718825450688,-500.0,0.00024657,5]
[329910764,1718825450698,-500.0,0.00024657,5]
[329910765,1718825450707,-500.0,0.00024657,5]
[329910766,1718825450717,-500.0,0.00024657,5]
[329910767,1718825450728,-6708.74,0.00024657,5]
[329910768,1718825450738,-1896.39,0.00024657,5]
[329910769,1718825450747,-2721.7,0.00024657,5]
[329910770,1718825450756,-500.0,0.00024657,5]
[329910771,1718825450765,-517.55108799,0.00024657,5]
[329910772,1718825450775,-690.93,0.00024657,5]
[329910773,1718825450784,-500.0,0.00024658,2]
[329910774,1718825450794,-254.833194,0.00024658,2]
[329910775,1718825450803,-158.43769256,0.00024784,2]
[329910776,1718825450813,-1385.0,0.00024878,5]
[329910777,1718825450822,-498.0,0.000249,2]
[329910778,1718825450832,-190.87907517,0.00024911,2]
[329910779,1718825450841,-995.7627344,0.00024928,2]
[329910780,1718825450851,-378.36965592,0.0002493,2]
[329910781,1718825450860,-612.1,0.0002493,5]
[329910782,1718825450870,-545.02,0.00024931,5]
[329910783,1718825450880,-500.0,0.00024931,5]
[329910784,1718825450889,-500.0,0.00024931,5]
[329910785,1718825450899,-269.01355882,0.00024931,5]
[329910786,1718825450909,-500.0,0.00024931,5]
[329910787,1718825450918,-500.0,0.00024931,5]
[329910788,1718825450928,-500.0,0.00024931,5]
[329910789,1718825450938,-311.34379924,0.00024931,5]
[329910790,1718825450948,-287.67886533,0.00024931,5]
[329910791,1718825450958,-500.0,0.00024931,5]
[329910792,1718825450967,-500.0,0.00024931,5]
[329910793,1718825450978,-500.0,0.00024931,5]
[329910794,1718825450988,-500.0,0.00024931,5]
[329910795,1718825450998,-500.0,0.00024931,5]
[329910796,1718825451008,-500.0,0.00024931,5]
[329910797,1718825451018,-638.4,0.00024931,5]
[329910798,1718825451028,-1934.73,0.00024931,5]
[329910799,1718825451038,-500.0,0.00024931,5]
[329910800,1718825451048,-1718.55,0.00024931,5]
[329910801,1718825451057,-500.0,0.00024931,5]
[329910802,1718825451066,-5085.26,0.00024931,5]
[329910803,1718825451075,-500.0,0.00024931,5]
[329910804,1718825451085,-500.0,0.00024931,5]
[329910805,1718825451095,-500.0,0.00024931,5]
[329910806,1718825451105,-500.0,0.00024931,5]
[329910807,1718825451115,-500.0,0.00024931,5]
[329910808,1718825451125,-500.0,0.00024931,5]
[329910809,1718825451135,-500.0,0.00024931,5]
[329910810,1718825451145,-399.11417257,0.00024931,5]
[329910811,1718825451154,-500.0,0.00024931,5]
[329910812,1718825451164,-874.24,0.00024931,5]
[329910813,1718825451174,-746.57,0.00024931,5]
[329910814,1718825451183,-500.0,0.00024931,5]
[329910815,1718825451192,-500.0,0.00024931,5]
[329910816,1718825451201,-500.0,0.00024931,5]
[329910817,1718825451211,-772.52,0.00024931,5]
[329910818,1718825451220,-500.0,0.00024931,5]
[329910819,1718825451231,-500.0,0.00024931,5]
[329910820,1718825451239,-500.0,0.00024931,5]
[329910821,1718825451248,-500.0,0.00024931,5]
[329910822,1718825451258,-500.0,0.00024931,5]
[329910823,1718825451267,-437.10574268,0.00024931,5]
[329910824,1718825451277,-500.0,0.00024931,5]
[329910825,1718825451286,-500.0,0.00024931,5]
[329910826,1718825451295,-500.0,0.00024931,5]
[329910827,1718825451305,-500.0,0.00024931,5]
[329910828,1718825451314,-500.0,0.00024931,5]
[329910829,1718825451323,-500.0,0.00024931,5]
[329910830,1718825451332,-510.05,0.00024931,5]
[329910831,1718825451341,-1304.88,0.00024931,5]
[329910832,1718825451350,-7444.73,0.00024931,5]
[329910833,1718825451359,-423.15023596,0.00024931,5]
[329910834,1718825451369,-500.0,0.00024931,5]
[329910835,1718825451378,-500.0,0.00024931,5]
[329910836,1718825451390,-500.0,0.00024931,5]
[329910837,1718825451400,-1837.48,0.00024931,5]
[329910838,1718825451409,-500.0,0.00024931,5]
[329910839,1718825451418,-500.0,0.00024931,5]
[329910840,1718825451428,-500.0,0.00024931,5]
[329910841,1718825451438,-500.0,0.00024931,5]
[329910842,1718825451447,-500.0,0.00024931,5]
[329910843,1718825451456,-1241.63,0.00024931,5]
[329910844,1718825451466,-500.0,0.00024931,5]
[329910845,1718825451478,-2488.13,0.00024931,5]
[329910846,1718825451487,-502.19,0.00024931,5]
[329910847,1718825451496,-820.67,0.00024931,5]
[329910848,1718825451505,-500.0,0.00024931,5]
[329910849,1718825451514,-3461.42,0.00024931,5]
[329910850,1718825451522,-500.0,0.00024931,5]
[329910851,1718825451531,-500.0,0.00024931,5]
[329910852,1718825451540,-504.24214208,0.00024931,5]
[329910853,1718825451549,-500.0,0.00024931,5]
[329910854,1718825451559,-503.67087897,0.00024931,5]
[329910855,1718825451568,-500.0,0.00024931,5]
[329910856,1718825451577,-500.0,0.00024931,5]
[329910857,1718825451586,-500.0,0.00024931,5]
[329910858,1718825451596,-8160.75,0.00024931,5]
[329910859,1718825451605,-500.0,0.00024931,5]
[329910860,1718825451614,-500.0,0.00024931,5]
[329910861,1718825451623,-500.0,0.00024931,5]
[329910862,1718825451633,-500.0,0.00024931,5]
[329910863,1718825451642,-500.0,0.00024931,5]
[329910864,1718825451651,-440.02367638,0.00024931,5]
[329910865,1718825451661,-500.0,0.00024931,5]
[329910866,1718825451670,-500.0,0.00024931,5]
[329910867,1718825451679,-500.0,0.00024931,5]
[329910868,1718825451688,-526.62,0.00024931,5]
[329910869,1718825451697,-500.0,0.00024931,5]
[329910870,1718825451706,-2579.15,0.00024931,5]
[329910871,1718825451714,-455.37098909,0.00024931,5]
[329910872,1718825451723,-500.0,0.00024931,5]
[329910873,1718825451732,-918.74,0.00024931,5]
[329910874,1718825451741,-500.0,0.00024931,5]
[329910875,1718825451750,-500.0,0.00024931,5]
[329910876,1718825451759,-500.0,0.00024931,5]
[329910877,1718825451768,-500.0,0.00024931,5]
[329910878,1718825451777,-809.32,0.00024931,5]
[329910879,1718825451786,-500.0,0.00024931,5]
[329910880,1718825451795,-3172.76,0.00024931,5]
[329910881,1718825451804,-599.49,0.00024931,5]
[329910882,1718825451812,-500.0,0.00024931,5]
[329910883,1718825451821,-579.66403107,0.00024931,5]
[329910884,1718825451830,-500.0,0.00024931,5]
[329910885,1718825451839,-500.0,0.00024931,5]
[329910886,1718825451847,-500.0,0.00024931,5]
[329910887,1718825451856,-6708.74,0.00024931,5]
[329910888,1718825451866,-1896.39,0.00024931,5]
[329910889,1718825451874,-2721.7,0.00024931,5]
[329910890,1718825451883,-690.93,0.00024931,5]
[329910891,1718825451892,-402.10409234,0.00025,2]
[329910892,1718825451901,-1846.9757574,0.00025,2]
[329910893,1718825451910,-160.0,0.00025,2]
[329910894,1718825451919,-1240.81622482,0.00025,3]
[329910895,1718825451927,-77367.93996961,0.00025,60]
[329910896,1718825452144,-24546.82045807,0.00025,60]
[329910897,1718825452154,-762.62906153,0.00025,2]
[329910898,1718825452163,-404.07905138,0.00025003,2]
[329910899,1718825452172,-2530.58852046,0.000251,2]
[329910900,1718825452181,-2530.58852044,0.000251,2]
[329910901,1718825452190,-2530.58852044,0.000251,2]
[329910902,1718825452199,-2530.58852044,0.000251,2]
[329910903,1718825452208,-2530.58852044,0.000251,2]
[329910904,1718825452218,-2530.58852044,0.000251,2]
[329910905,1718825452227,-180.0,0.000252,2]
[329910906,1718825452236,-496.0,0.000252,2]
[329910907,1718825452246,-503.0,0.000252,2]
[329910908,1718825452255,-503.0,0.000252,2]
[329910909,1718825452264,-1749.0,0.000252,2]
[329910910,1718825452274,-222.45795051,0.00025203,2]
[329910911,1718825452283,-2645.10006487,0.00025203,2]
[329910912,1718825452292,-264.64000203,0.00025203,2]
[329910913,1718825452301,-256.02897412,0.00025204,2]
[329910914,1718825452310,-545.02,0.00025205,5]
[329910915,1718825452320,-500.0,0.00025205,5]
[329910916,1718825452329,-492.37359992,0.00025205,5]
[329910917,1718825452339,-500.0,0.00025205,5]
[329910918,1718825452348,-201.08369331,0.00025205,5]
[329910919,1718825452358,-500.0,0.00025205,5]
[329910920,1718825452368,-500.0,0.00025205,5]
[329910921,1718825452377,-500.0,0.00025205,5]
[329910922,1718825452394,-457.05677429,0.00025205,5]
[329910923,1718825452403,-500.0,0.00025205,5]
[329910924,1718825452412,-500.0,0.00025205,5]
[329910925,1718825452421,-638.4,0.00025205,5]
[329910926,1718825452431,-1934.73,0.00025205,5]
[329910927,1718825452441,-500.0,0.00025205,5]
[329910928,1718825452450,-1718.55,0.00025205,5]
[329910929,1718825452459,-5085.26,0.00025205,5]
[329910930,1718825452470,-500.0,0.00025205,5]
[329910931,1718825452480,-500.0,0.00025205,5]
[329910932,1718825452490,-500.0,0.00025205,5]
[329910933,1718825452499,-500.0,0.00025205,5]
[329910934,1718825452509,-500.0,0.00025205,5]
[329910935,1718825452519,-500.0,0.00025205,5]
[329910936,1718825452528,-874.24,0.00025205,5]
[329910937,1718825452539,-746.57,0.00025205,5]
[329910938,1718825452551,-500.0,0.00025205,5]
[329910939,1718825452561,-772.52,0.00025205,5]
[329910940,1718825452572,-500.0,0.00025205,5]
[329910941,1718825452582,-500.0,0.00025205,5]
[329910942,1718825452593,-500.0,0.00025205,5]
[329910943,1718825452603,-500.0,0.00025205,5]
[329910944,1718825452612,-500.0,0.00025205,5]
[329910945,1718825452621,-510.20644159,0.00025205,5]
[329910946,1718825452632,-500.0,0.00025205,5]
[329910947,1718825452643,-500.0,0.00025205,5]
[329910948,1718825452653,-404.37784739,0.00025205,5]
[329910949,1718825452662,-500.0,0.00025205,5]
[329910950,1718825452672,-510.05,0.00025205,5]
[329910951,1718825452683,-1304.88,0.00025205,5]
[329910952,1718825452692,-4872.75937381,0.00025205,5]
[329910953,1718825452706,-2571.97062619,0.00025205,5]
[329910954,1718825452715,-222.98,0.00025205,5]
[329910955,1718825452724,-500.0,0.00025205,5]
[329910956,1718825452734,-500.0,0.00025205,5]
[329910957,1718825452744,-1828.4984947,0.00025205,5]
[329910958,1718825452756,-8.9815053,0.00025205,5]
[329910959,1718825452766,-500.0,0.00025205,5]
[329910960,1718825452777,-500.0,0.00025205,5]
[329910961,1718825452787,-400.6084947,0.00025205,5]
[329910962,1718825452802,-99.3915053,0.00025205,5]
[329910963,1718825452811,-500.0,0.00025205,5]
[329910964,1718825452821,-20.94415938,0.00025205,5]
[329910965,1718825453334,935.69527812,9.999e-05,2]
[329910966,1718825538718,155.01549845,0.00015,2]
[329910967,1718825548837,212.36305659,9.999e-05,2]
[329910972,1718825837882,43.92428573,9.999e-05,2]
[329910973,1718825837913,110.8899372,9.999e-05,2]
[329910980,1718826148621,300.41290357,9.999e-05,2]
[329910981,1718826148652,3464.47024284,9.999e-05,2]
[329910982,1718826166563,1981.2820566,9.999e-05,2]
[329910983,1718826168935,361.21672397,9.999e-05,2]
[329910989,1718826430137,-154.81422293,0.00016968,2]
[329910990,1718826430159,-63.90928927,0.00016969,2]
[329910991,1718826452139,-603.93396427,0.00016969,2]
[329910993,1718826552095,-235.14376078,0.00016774,2]
[329911032,1718826632564,-457.512,0.00016774,2]
[329911034,1718826632576,-1293.43908675,0.00016774,2]
[329911036,1718826632586,-16748.74202195,0.00016774,2]
[329911084,1718826638070,-516.26688123,0.00016772,2]
[329911085,1718826638080,-154.9690062,0.00016773,2]
[329911086,1718826638089,-333.7110871,0.00016774,2]
[329911087,1718826638103,-10889.91359335,0.00016774,2]
[329911088,1718826638116,-7525.24168856,0.00016774,2]
[329911089,1718826638125,-5580.57610038,0.00016775,2]
[329911090,1718826638147,-4411.55242182,0.00016775,2]
[329911091,1718826638159,-3651.14350589,0.00016775,2]
[329911202,1718826640390,-11256.72797191,0.00016775,2]
[329911203,1718826640400,-151.54773924,0.00016895,2]
[329911204,1718826640409,-296.628297,0.0001697,2]
[329911205,1718826640419,-450.743675,0.00016995,2]
[329911206,1718826640429,-838.67830117,0.00017814,7]
[329911207,1718826640438,-605.17031225,0.00017994,2]
[329911208,1718826640447,-199.12526016,0.00017995,2]
[329911209,1718826640457,-155.38860571,0.00018995,2]
[329911210,1718826640466,-402.2507925,0.00018996,2]
[329911211,1718826640475,-10731.47867733,0.00018998,2]
[329911212,1718826640491,-379.08740248,0.00018998,2]
[329911213,1718826640500,-539.59557086,0.00019,2]
[329911214,1718826640510,-500.0,0.00019178,2]
[329911215,1718826640520,-500.0,0.00019178,2]
[329911216,1718826640528,-500.0,0.00019178,2]
[329911217,1718826640538,-500.0,0.00019178,2]
[329911218,1718826640547,-500.0,0.00019178,2]
[329911219,1718826640557,-500.0,0.00019178,2]
[329911220,1718826640566,-549.99999999,0.00019178,2]
[329911221,1718826640575,-500.0,0.00019178,2]
[329911222,1718826640585,-200.0,0.0002,2]
[329911223,1718826640595,-474.399286,0.00021096,2]
[329911224,1718826640605,-682.93376739,0.000228,2]
[329911225,1718826640613,-1128.0,0.00022983,4]
[329911226,1718826640623,-166.1,0.00022983,4]
[329911227,1718826640632,-206.44649455,0.00023,2]
[329911228,1718826640642,-539.0,0.00024645,3]
[329911229,1718826640651,-155.19972833,0.00024653,2]
[329911230,1718826640660,-1101.25048311,0.00024655,2]
[329911231,1718826640670,-1504.46803443,0.00024655,2]
[329911232,1718826640679,-945.74878612,0.00024655,2]
[329911233,1718826640688,-223.80311676,0.00024655,2]
[329911234,1718826640698,-489.77886636,0.00024655,2]
[329911235,1718826640707,-2130.3064068,0.00024655,2]
[329911236,1718826640717,-455.80425195,0.00024655,2]
[329911237,1718826640726,-34738.77812561,0.00024655,2]
[329911238,1718826640736,-285.87876673,0.00024656,2]
[329911239,1718826640746,-4464.38926803,0.00024657,15]
[329911240,1718826640757,-500.0,0.00024657,5]
[329911241,1718826640773,-500.0,0.00024657,5]
[329911242,1718826640782,-500.0,0.00024657,5]
[329911243,1718826640792,-500.0,0.00024657,5]
[329911244,1718826640803,-281.99040685,0.00024657,5]
[329911245,1718826640813,-500.0,0.00024657,5]
[329911246,1718826640822,-1692.89,0.00024657,5]
[329911247,1718826640832,-500.0,0.00024657,5]
[329911248,1718826640844,-500.0,0.00024657,5]
[329911249,1718826640855,-1503.73,0.00024657,5]
[329911250,1718826640864,-4449.6,0.00024657,5]
[329911251,1718826640873,-510.67410164,0.00024657,5]
[329911252,1718826640883,-607.65105241,0.00024657,5]
[329911253,1718826640893,-500.0,0.00024657,5]
[329911254,1718826640902,-500.0,0.00024657,5]
[329911255,1718826640912,-764.96,0.00024657,5]
[329911256,1718826640922,-585.17924899,0.00024657,5]
[329911257,1718826640931,-500.0,0.00024657,5]
[329911258,1718826640940,-653.25,0.00024657,5]
[329911259,1718826640949,-500.0,0.00024657,5]
[329911260,1718826640959,-186.56,0.00024657,5]
[329911261,1718826640969,-500.0,0.00024657,5]
[329911262,1718826640979,-675.95,0.00024657,5]
[329911263,1718826640988,-500.0,0.00024657,5]
[329911264,1718826640998,-500.0,0.00024657,5]
[329911265,1718826641008,-741.87,0.00024657,5]
[329911266,1718826641018,-3004.14,0.00024657,5]
[329911267,1718826641028,-500.0,0.00024657,5]
[329911268,1718826641037,-6720.14,0.00024657,5]
[329911269,1718826641047,-500.0,0.00024657,5]
[329911270,1718826641056,-500.0,0.00024657,5]
[329911271,1718826641066,-1738.36,0.00024657,5]
[329911272,1718826641075,-500.0,0.00024657,5]
[329911273,1718826641084,-568.6,0.00024657,5]
[329911274,1718826641093,-1329.59,0.00024657,5]
[329911275,1718826641104,-633.35,0.00024657,5]
[329911276,1718826641113,-500.0,0.00024657,5]
[329911277,1718826641122,-500.0,0.00024657,5]
[329911278,1718826641131,-500.0,0.00024657,5]
[329911279,1718826641140,-500.0,0.00024657,5]
[329911280,1718826641149,-500.0,0.00024657,5]
[329911281,1718826641159,-500.0,0.00024657,5]
[329911282,1718826641168,-500.0,0.00024657,5]
[329911283,1718826641177,-649.12061457,0.00024657,5]
[329911284,1718826641187,-500.0,0.00024657,5]
[329911285,1718826641196,-3172.97,0.00024657,5]
[329911286,1718826641205,-500.0,0.00024657,5]
[329911287,1718826641214,-500.0,0.00024657,5]
[329911288,1718826641223,-650.79,0.00024657,5]
[329911289,1718826641232,-500.0,0.00024657,5]
[329911290,1718826641241,-1137.29,0.00024657,5]
[329911291,1718826641251,-752.28,0.00024657,5]
[329911292,1718826641260,-6888.14,0.00024657,5]
[329911293,1718826641269,-500.0,0.00024657,5]
[329911294,1718826641278,-316.0421936,0.00024657,5]
[329911295,1718826641288,-500.0,0.00024657,5]
[329911296,1718826641297,-500.0,0.00024657,5]
[329911297,1718826641305,-500.0,0.00024657,5]
[329911298,1718826641314,-500.0,0.00024657,5]
[329911299,1718826641323,-1607.8,0.00024657,5]
[329911300,1718826641332,-7306.76620439,0.00024657,5]
[329911316,1718826643404,-153.87506381,0.00024657,5]
[329911317,1718826643417,-3767.9387318,0.00024657,5]
[329911318,1718826643428,-500.0,0.00024657,5]
[329911319,1718826643439,-500.0,0.00024657,5]
[329911320,1718826643448,-202.36523187,0.00024657,5]
[329911337,1718826646527,-2376.34268206,0.00016675,2]
[329911338,1718826646537,-297.63476813,0.00024657,5]
[329911339,1718826646546,-500.0,0.00024657,5]
[329911340,1718826646557,-500.0,0.00024657,5]
[329911341,1718826646567,-500.0,0.00024657,5]
[329911342,1718826646576,-500.0,0.00024657,5]
[329911343,1718826646586,-2280.78,0.00024657,5]
[329911344,1718826646596,-2712.03,0.00024657,5]
[329911345,1718826646605,-500.0,0.00024657,5]
[329911346,1718826646615,-500.0,0.00024657,5]
[329911347,1718826646625,-500.0,0.00024657,5]
[329911348,1718826646634,-1528.95,0.00024657,5]
[329911349,1718826646645,-1431.31,0.00024657,5]
[329911350,1718826646654,-500.0,0.00024657,5]
[329911351,1718826646664,-500.0,0.00024657,5]
[329911352,1718826646673,-500.0,0.00024657,5]
[329911353,1718826646683,-500.0,0.00024657,5]
[329911354,1718826646692,-842.18,0.00024657,5]
[329911355,1718826646701,-500.0,0.00024657,5]
[329911356,1718826646711,-500.0,0.00024657,5]
[329911357,1718826646720,-549.53,0.00024657,5]